[Event "Open NK Rapid 2025 bord 26-50"]
[Site "Helmond, Netherlands"]
[Date "2025.05.03"]
[Round "9.8"]
[White "Wolff, Christoph"]
[Black "Timmer, Michel"]
[Result "0-1"]
[TimeControl "15 min +5 sec increment"]
[WhiteFideId "4648706"]
[BlackFideId "40104524"]
[WhiteElo "1941"]
[BlackElo "1796"]

1. e4 {[%clk 00:15:09]} e5 {[%clk 00:15:07]} {[%emt 00:00:03]} 2. Nc3 {[%clk
00:15:12]} {[%emt 00:00:02]} Nf6 {[%clk 00:15:10]} 3. f4 {[%clk 00:15:15]}
{[%emt 00:00:01]} d5 {[%clk 00:15:14]} {[%emt 00:00:02]} 4. fxe5 {[%clk
00:15:19]} {[%emt 00:00:02]} Nxe4 {[%clk 00:15:17]} {[%emt 00:00:02]} 5. Qf3
{[%clk 00:15:22]} {[%emt 00:00:01]} Nc6 {[%clk 00:15:19]} {[%emt 00:00:03]} 6.
Bb5 {[%clk 00:15:09]} {[%emt 00:00:19]} Nxc3 {[%clk 00:15:16]} {[%emt
00:00:07]} 7. bxc3 {[%clk 00:14:32]} {[%emt 00:00:42]} Qh4+ {[%clk 00:15:14]}
{[%emt 00:00:07]} 8. g3 {[%clk 00:14:28]} {[%emt 00:00:09]} Qe4+ {[%clk
00:15:17]} {[%emt 00:00:02]} 9. Qxe4 {[%clk 00:14:30]} {[%emt 00:00:03]} dxe4
{[%clk 00:15:20]} {[%emt 00:00:02]} 10. Bxc6+ {[%clk 00:14:12]} {[%emt
00:00:23]} bxc6 {[%clk 00:15:23]} {[%emt 00:00:02]} 11. Ne2 {[%clk 00:14:14]}
{[%emt 00:00:03]} g6 {[%clk 00:15:04]} {[%emt 00:00:24]} 12. d4 {[%clk
00:13:16]} {[%emt 00:01:03]} exd3 {[%clk 00:15:02]} {[%emt 00:00:08]} 13. cxd3
{[%clk 00:13:19]} {[%emt 00:00:01]} Bg7 {[%clk 00:13:55]} {[%emt 00:01:12]} 14.
Bf4 {[%clk 00:13:13]} {[%emt 00:00:10]} c5 {[%clk 00:12:49]} {[%emt 00:01:12]}
15. O-O {[%clk 00:12:53]} {[%emt 00:00:23]} Ba6 {[%clk 00:12:22]} {[%emt
00:00:34]} 16. c4 {[%clk 00:12:52]} {[%emt 00:00:07]} Rd8 {[%clk 00:10:48]}
{[%emt 00:01:38]} 17. Rad1 {[%clk 00:12:48]} {[%emt 00:00:08]} h6 {[%clk
00:10:28]} {[%emt 00:00:26]} 18. h4 {[%clk 00:12:08]} {[%emt 00:00:44]} Bc8
{[%clk 00:09:06]} {[%emt 00:01:28]} 19. Nc3 {[%clk 00:11:28]} {[%emt 00:00:45]}
Bg4 {[%clk 00:03:04]} {[%emt 00:06:07]} 20. Rd2 {[%clk 00:11:27]} {[%emt
00:00:06]} Be6 {[%clk 00:02:04]} {[%emt 00:01:05]} 21. Ne4 {[%clk 00:11:07]}
{[%emt 00:00:24]} O-O {[%clk 00:01:20]} {[%emt 00:00:50]} 22. Nxc5 {[%clk
00:11:05]} {[%emt 00:00:08]} Rd4 {[%clk 00:00:59]} {[%emt 00:00:25]} 23. Nb3
{[%clk 00:10:59]} {[%emt 00:00:11]} Rd7 {[%clk 00:00:34]} {[%emt 00:00:26]} 24.
Nc5 {[%clk 00:09:39]} {[%emt 00:01:30]} Rd4 {[%clk 00:00:36]} {[%emt 00:00:02]}
25. Nxe6 {[%clk 00:09:42]} {[%emt 00:00:03]} fxe6 {[%clk 00:00:38]} {[%emt
00:00:02]} 26. Rb1 {[%clk 00:08:41]} {[%emt 00:01:06]} Rf5 {[%clk 00:00:33]}
{[%emt 00:00:11]} 27. Rb8+ {[%clk 00:08:03]} {[%emt 00:00:42]} Kh7 {[%clk
00:00:34]} {[%emt 00:00:04]} 28. Rb7 {[%clk 00:08:07]} {[%emt 00:00:02]} g5
{[%clk 00:00:26]} {[%emt 00:00:13]} 29. hxg5 {[%emt 00:00:11]} hxg5 {[%clk
00:00:28]} {[%emt 00:00:01]} 30. Be3 {[%clk 00:08:04]} {[%emt 00:00:03]} Rg4
{[%clk 00:00:31]} {[%emt 00:00:03]} 31. Rg2 {[%clk 00:06:19]} {[%emt 00:01:50]}
Bxe5 {[%clk 00:00:23]} {[%emt 00:00:12]} 32. Rxa7 {[%clk 00:05:48]} {[%emt
00:00:37]} Rf3 {[%clk 00:00:27]} 33. Bf2 {[%clk 00:04:44]} {[%emt 00:01:08]}
Rxd3 {[%clk 00:00:29]} {[%emt 00:00:03]} 34. Rh2+ {[%clk 00:03:49]} {[%emt
00:01:00]} Kg6 {[%clk 00:00:29]} {[%emt 00:00:04]} 35. Kf1 {[%clk 00:03:00]}
{[%emt 00:00:55]} Rxc4 {[%clk 00:00:28]} {[%emt 00:00:07]} 36. Ke2 {[%clk
00:02:48]} {[%emt 00:00:17]} Rdc3 {[%clk 00:00:20]} {[%emt 00:00:12]} 37. Rh1
{[%clk 00:02:43]} {[%emt 00:00:10]} Rc2+ {[%clk 00:00:24]} {[%emt 00:00:02]} 38.
Kf3 {[%clk 00:02:41]} {[%emt 00:00:06]} Rxf2+ {[%clk 00:00:26]} {[%emt
00:00:03]} 39. Kxf2 {[%clk 00:02:44]} {[%emt 00:00:03]} Bd4+ {[%clk 00:00:30]}
40. Kf3 {[%clk 00:02:43]} {[%emt 00:00:06]} Bxa7 {[%clk 00:00:34]} {[%emt
00:00:02]} 41. Re1 {[%clk 00:02:46]} {[%emt 00:00:01]} Kf5 {[%clk 00:00:31]}
{[%emt 00:00:07]} 42. Rb1 {[%clk 00:02:46]} {[%emt 00:00:07]} Rc3+ {[%clk
00:00:27]} {[%emt 00:00:09]} 43. Kg2 {[%clk 00:02:49]} {[%emt 00:00:01]} Rc2+
{[%clk 00:00:25]} {[%emt 00:00:07]} 44. Kf3 {[%clk 00:02:48]} {[%emt 00:00:05]}
Rxa2 {[%clk 00:00:28]} {[%emt 00:00:03]} 45. Rb5+ {[%clk 00:02:52]} {[%emt
00:00:02]} Kf6 {[%clk 00:00:29]} {[%emt 00:00:03]} 46. g4 {[%clk 00:02:54]}
{[%emt 00:00:03]} Rf2+ {[%clk 00:00:30]} {[%emt 00:00:04]} 47. Ke4 {[%clk
00:02:58]} Rf4+ {[%clk 00:00:33]} {[%emt 00:00:02]} 48. Kd3 {[%clk 00:02:59]}
{[%emt 00:00:04]} Rxg4 {[%clk 00:00:36]} {[%emt 00:00:02]} 49. Rb7 {[%clk
00:03:03]} {[%emt 00:00:01]} Bb6 {[%clk 00:00:39]} {[%emt 00:00:03]} 50. Ke2
{[%clk 00:03:07]} {[%emt 00:00:01]} Rb4 {[%clk 00:00:39]} {[%emt 00:00:05]} 51.
Kf3 {[%clk 00:03:10]} {[%emt 00:00:02]} Kf5 {[%clk 00:00:41]} {[%emt 00:00:03]}
52. Rb8 {[%clk 00:03:13]} {[%emt 00:00:02]} Rb3+ {[%clk 00:00:43]} {[%emt
00:00:03]} 53. Kg2 {[%clk 00:03:16]} Kg4 {[%clk 00:00:46]} {[%emt 00:00:02]} 54.
Rd8 {[%clk 00:03:18]} {[%emt 00:00:04]} Rb2+ {[%clk 00:00:48]} {[%emt
00:00:02]} 55. Kf1 {[%clk 00:03:22]} {[%emt 00:00:01]} e5 {[%clk 00:00:50]}
{[%emt 00:00:03]} 56. Re8 {[%clk 00:03:14]} {[%emt 00:00:13]} Rf2+ {[%clk
00:00:48]} {[%emt 00:00:07]} 57. Ke1 {[%clk 00:03:18]} {[%emt 00:00:02]} Rf5
{[%clk 00:00:51]} {[%emt 00:00:01]} 58. Ke2 {[%clk 00:03:21]} {[%emt 00:00:02]}
Kf4 {[%clk 00:00:55]} {[%emt 00:00:02]} 59. Re6 {[%clk 00:03:21]} {[%emt
00:00:05]} e4 {[%clk 00:00:58]} {[%emt 00:00:02]} 60. Rg6 {[%clk 00:03:21]}
{[%emt 00:00:05]} g4 {[%clk 00:01:00]} {[%emt 00:00:02]} 61. Rg8 {[%clk
00:03:23]} {[%emt 00:00:03]} Ra5 {[%clk 00:01:03]} {[%emt 00:00:02]} 62. Rf8+
{[%clk 00:03:26]} {[%emt 00:00:02]} Ke5 {[%clk 00:01:06]} {[%emt 00:00:02]} 63.
Re8+ {[%clk 00:03:29]} {[%emt 00:00:03]} Kd4 {[%clk 00:01:09]} {[%emt
00:00:02]} 64. Rd8+ {[%clk 00:03:33]} {[%emt 00:00:01]} Rd5 {[%clk 00:01:11]}
{[%emt 00:00:02]} 65. Rg8 {[%clk 00:03:36]} {[%emt 00:00:02]} Ra5 {[%clk
00:01:04]} {[%emt 00:00:13]} 66. Rxg4 {[%clk 00:03:38]} {[%emt 00:00:02]} Ra2+
{[%clk 00:01:08]} {[%emt 00:00:02]} 67. Kd1 {[%clk 00:03:42]} Kd3 {[%clk
00:01:11]} {[%emt 00:00:01]} 68. Kc1 {[%clk 00:03:46]} {[%emt 00:00:02]} Bd4
{[%clk 00:01:14]} {[%emt 00:00:02]} 69. Rg3+ {[%clk 00:03:44]} {[%emt
00:00:06]} e3 {[%clk 00:01:18]} {[%emt 00:00:02]} 0-1

[Event "Open NK Rapid 2025 bord 26-50"]
[Site "Helmond, Netherlands"]
[Date "2025.05.03"]
[Round "9.9"]
[White "Thijssen, Freek"]
[Black "Kaufmann, Thomas"]
[Result "1/2-1/2"]
[TimeControl "15 min +5 sec increment"]
[WhiteFideId "1091840"]
[BlackFideId "1084941"]
[WhiteElo "1790"]
[BlackElo "1939"]

1. e4 {[%clk 00:15:07]} {[%emt 00:00:02]} c5 {[%clk 00:15:01]} {[%emt
00:00:08]} 2. Nf3 {[%clk 00:15:09]} {[%emt 00:00:02]} Nc6 {[%clk 00:15:05]}
{[%emt 00:00:01]} 3. d4 {[%clk 00:15:10]} {[%emt 00:00:04]} cxd4 {[%clk
00:15:08]} {[%emt 00:00:02]} 4. Nxd4 {[%clk 00:15:13]} {[%emt 00:00:02]} e5
{[%clk 00:15:11]} {[%emt 00:00:02]} 5. Nb5 {[%clk 00:15:16]} {[%emt 00:00:03]}
d6 {[%clk 00:15:14]} {[%emt 00:00:01]} 6. N1c3 {[%clk 00:15:18]} {[%emt
00:00:02]} a6 {[%clk 00:15:18]} {[%emt 00:00:02]} 7. Na3 {[%clk 00:15:21]}
{[%emt 00:00:02]} Be7 {[%clk 00:15:22]} {[%emt 00:00:01]} 8. Nc4 {[%clk
00:14:54]} {[%emt 00:00:33]} b5 {[%clk 00:15:24]} {[%emt 00:00:02]} 9. Ne3
{[%clk 00:14:56]} {[%emt 00:00:03]} Nf6 {[%clk 00:15:27]} {[%emt 00:00:02]} 10.
Bd3 {[%clk 00:13:50]} {[%emt 00:01:11]} Nb4 {[%clk 00:15:19]} {[%emt 00:00:13]}
11. Be2 {[%clk 00:13:43]} {[%emt 00:00:12]} O-O {[%clk 00:15:19]} {[%emt
00:00:05]} 12. a3 {[%clk 00:13:38]} {[%emt 00:00:11]} Nc6 {[%clk 00:14:32]}
{[%emt 00:00:52]} 13. Ned5 {[%clk 00:11:55]} {[%emt 00:01:48]} Be6 {[%clk
00:14:16]} {[%emt 00:00:20]} 14. O-O {[%clk 00:10:56]} {[%emt 00:01:04]} Nd4
{[%clk 00:13:30]} {[%emt 00:00:51]} 15. Nxf6+ {[%clk 00:09:38]} {[%emt
00:01:22]} Bxf6 {[%clk 00:13:32]} {[%emt 00:00:04]} 16. Be3 {[%clk 00:09:41]}
{[%emt 00:00:02]} Nxe2+ {[%clk 00:13:23]} {[%emt 00:00:14]} 17. Nxe2 {[%clk
00:09:38]} {[%emt 00:00:08]} d5 {[%clk 00:13:06]} {[%emt 00:00:22]} 18. exd5
{[%clk 00:09:30]} {[%emt 00:00:13]} Bxd5 {[%clk 00:12:55]} {[%emt 00:00:16]} 19.
Nc3 {[%clk 00:09:30]} {[%emt 00:00:06]} Bc4 {[%clk 00:12:54]} {[%emt 00:00:06]}
20. Re1 {[%clk 00:08:52]} {[%emt 00:00:42]} g6 {[%clk 00:12:27]} {[%emt
00:00:32]} 21. Qf3 {[%clk 00:08:26]} {[%emt 00:00:31]} Bg7 {[%clk 00:12:11]}
{[%emt 00:00:21]} 22. Rad1 {[%clk 00:08:21]} {[%emt 00:00:09]} Qc7 {[%clk
00:12:08]} {[%emt 00:00:09]} 23. Rd2 {[%clk 00:04:36]} {[%emt 00:03:50]} Rad8
{[%clk 00:11:46]} {[%emt 00:00:27]} 24. Red1 {[%clk 00:04:37]} {[%emt
00:00:04]} Rxd2 {[%clk 00:11:48]} {[%emt 00:00:03]} 25. Rxd2 {[%clk 00:04:40]}
{[%emt 00:00:03]} h6 {[%clk 00:11:31]} {[%emt 00:00:21]} 26. Nd5 {[%clk
00:03:29]} {[%emt 00:01:16]} Bxd5 {[%clk 00:10:55]} {[%emt 00:00:42]} 27. Qxd5
{[%clk 00:03:26]} {[%emt 00:00:07]} Rc8 {[%clk 00:10:16]} {[%emt 00:00:44]} 28.
c3 {[%clk 00:03:21]} {[%emt 00:00:11]} Rb8 {[%clk 00:08:33]} {[%emt 00:01:47]}
29. h3 {[%clk 00:02:47]} {[%emt 00:00:39]} a5 {[%clk 00:08:17]} {[%emt
00:00:22]} 30. Bc5 {[%clk 00:02:23]} {[%emt 00:00:29]} Bf8 {[%clk 00:07:49]}
{[%emt 00:00:32]} 31. Bxf8 {[%clk 00:01:57]} {[%emt 00:00:31]} Kxf8 {[%clk
00:07:36]} {[%emt 00:00:18]} 32. Re2 {[%clk 00:01:43]} {[%emt 00:00:19]} b4
{[%clk 00:07:15]} {[%emt 00:00:26]} 33. Qxe5 {[%clk 00:01:35]} {[%emt
00:00:13]} Qxe5 {[%clk 00:06:54]} {[%emt 00:00:26]} 34. Rxe5 {[%clk 00:01:39]}
{[%emt 00:00:01]} bxc3 {[%clk 00:06:45]} {[%emt 00:00:14]} 35. bxc3 {[%clk
00:01:41]} {[%emt 00:00:03]} Rb1+ {[%clk 00:05:59]} {[%emt 00:00:51]} 36. Kh2
{[%clk 00:01:45]} {[%emt 00:00:02]} Rb3 {[%clk 00:06:02]} {[%emt 00:00:02]} 37.
Rxa5 {[%clk 00:01:41]} {[%emt 00:00:09]} Rxc3 {[%clk 00:06:05]} {[%emt
00:00:02]} 38. Ra7 {[%clk 00:01:29]} {[%emt 00:00:17]} Kg7 {[%emt 00:00:08]} 39.
f3 {[%clk 00:01:15]} {[%emt 00:00:18]} h5 {[%clk 00:05:56]} {[%emt 00:00:11]}
40. a4 {[%clk 00:01:15]} {[%emt 00:00:05]} Ra3 {[%clk 00:05:59]} {[%emt
00:00:02]} 41. h4 {[%clk 00:01:01]} {[%emt 00:00:19]} Ra2 {[%clk 00:05:47]}
{[%emt 00:00:17]} 42. Kh3 {[%clk 00:00:41]} {[%emt 00:00:25]} Ra3 {[%clk
00:05:49]} {[%emt 00:00:03]} 43. a5 {[%clk 00:00:43]} {[%emt 00:00:03]} Rb3
{[%clk 00:05:43]} {[%emt 00:00:11]} 44. a6 {[%clk 00:00:41]} {[%emt 00:00:06]}
Ra3 {[%clk 00:05:47]} {[%emt 00:00:02]} 45. Ra8 {[%clk 00:00:38]} {[%emt
00:00:08]} Rb3 {[%clk 00:05:46]} {[%emt 00:00:06]} 46. a7 {[%clk 00:00:41]}
{[%emt 00:00:02]} Ra3 {[%clk 00:05:50]} {[%emt 00:00:02]} 47. Kg3 {[%clk
00:00:41]} {[%emt 00:00:04]} Ra4 {[%clk 00:05:51]} {[%emt 00:00:04]} 48. Kf2
{[%clk 00:00:26]} {[%emt 00:00:20]} Ra3 {[%clk 00:05:50]} {[%emt 00:00:07]} 49.
g4 {[%clk 00:00:22]} {[%emt 00:00:09]} hxg4 {[%clk 00:05:47]} {[%emt 00:00:07]}
50. fxg4 {[%clk 00:00:26]} {[%emt 00:00:02]} Kh7 {[%clk 00:05:44]} {[%emt
00:00:08]} 51. g5 {[%clk 00:00:20]} {[%emt 00:00:11]} Kg7 {[%clk 00:05:45]}
{[%emt 00:00:03]} 52. Ke2 {[%clk 00:00:23]} {[%emt 00:00:02]} Kh7 {[%clk
00:05:48]} {[%emt 00:00:02]} 53. Kd2 {[%clk 00:00:24]} {[%emt 00:00:04]} Kg7
{[%clk 00:05:50]} {[%emt 00:00:03]} 54. Kc2 {[%clk 00:00:27]} {[%emt 00:00:03]}
Kh7 {[%clk 00:05:54]} 55. Kb2 {[%clk 00:00:30]} {[%emt 00:00:02]} Ra6 {[%clk
00:05:55]} {[%emt 00:00:03]} 56. Kb3 {[%clk 00:00:32]} {[%emt 00:00:04]} Kg7
{[%clk 00:05:57]} {[%emt 00:00:02]} 57. Kb4 {[%clk 00:00:32]} {[%emt 00:00:05]}
Kh7 {[%clk 00:05:52]} {[%emt 00:00:10]} 58. Kb5 {[%clk 00:00:35]} {[%emt
00:00:02]} Ra1 {[%clk 00:05:55]} {[%emt 00:00:02]} 59. Kc6 {[%clk 00:00:19]}
{[%emt 00:00:21]} Kg7 {[%clk 00:05:42]} {[%emt 00:00:17]} 60. Kb7 {[%clk
00:00:12]} {[%emt 00:00:13]} Rb1+ {[%clk 00:05:45]} {[%emt 00:00:02]} 61. Kc7
{[%clk 00:00:13]} {[%emt 00:00:05]} Rc1+ {[%clk 00:05:38]} {[%emt 00:00:12]} 62.
Kd6 {[%clk 00:00:15]} {[%emt 00:00:03]} Ra1 {[%clk 00:05:40]} {[%emt 00:00:03]}
63. Ke5 {[%clk 00:00:15]} {[%emt 00:00:05]} Ra5+ {[%clk 00:05:36]} {[%emt
00:00:09]} 64. Kd6 {[%clk 00:00:11]} {[%emt 00:00:08]} Ra6+ {[%clk 00:05:28]}
{[%emt 00:00:13]} 65. Ke7 {[%clk 00:00:10]} {[%emt 00:00:05]} Ra1 {[%clk
00:05:29]} {[%emt 00:00:05]} 66. Kd6 {[%clk 00:00:11]} {[%emt 00:00:04]} Ra6+
{[%clk 00:05:30]} {[%emt 00:00:04]} 67. Ke5 {[%clk 00:00:15]} {[%emt 00:00:01]}
1/2-1/2

[Event "Open NK Rapid 2025 bord 26-50"]
[Site "Helmond, Netherlands"]
[Date "2025.05.03"]
[Round "9.10"]
[White "Moskalets, Sofiia"]
[Black "Hallibert, Emilien"]
[Result "1/2-1/2"]
[TimeControl "15 min +5 sec increment"]
[WhiteFideId "34144293"]
[BlackFideId "1092561"]
[WhiteElo "1938"]
[BlackElo "1720"]

1. e4 {[%clk 00:15:08]} {[%emt 00:00:02]} c6 {[%clk 00:15:09]} 2. d4 {[%clk
00:15:12]} {[%emt 00:00:01]} d5 {[%clk 00:15:13]} {[%emt 00:00:01]} 3. e5
{[%clk 00:15:16]} c5 {[%clk 00:15:18]} {[%emt 00:00:01]} 4. dxc5 {[%clk
00:15:20]} {[%emt 00:00:01]} e6 {[%clk 00:15:22]} 5. Be3 {[%clk 00:15:23]}
{[%emt 00:00:02]} Nd7 {[%clk 00:15:27]} 6. Bb5 {[%clk 00:15:22]} {[%emt
00:00:07]} Ne7 {[%clk 00:15:30]} 7. c3 {[%clk 00:15:25]} {[%emt 00:00:01]} Nc6
{[%clk 00:15:34]} {[%emt 00:00:01]} 8. Bxc6 {[%clk 00:14:41]} {[%emt 00:00:49]}
bxc6 {[%clk 00:15:38]} {[%emt 00:00:02]} 9. Nf3 {[%clk 00:13:42]} {[%emt
00:01:04]} Bxc5 {[%clk 00:14:39]} {[%emt 00:01:04]} 10. Bxc5 {[%clk 00:13:42]}
{[%emt 00:00:05]} Nxc5 {[%clk 00:14:41]} {[%emt 00:00:02]} 11. O-O {[%clk
00:13:41]} {[%emt 00:00:07]} O-O {[%clk 00:14:39]} {[%emt 00:00:06]} 12. Nbd2
{[%clk 00:13:41]} {[%emt 00:00:05]} Ba6 {[%clk 00:14:17]} {[%emt 00:00:28]} 13.
Re1 {[%clk 00:12:42]} {[%emt 00:01:04]} Nd3 {[%clk 00:14:03]} {[%emt 00:00:18]}
14. Re3 {[%clk 00:12:46]} {[%emt 00:00:02]} Nxb2 {[%clk 00:14:06]} {[%emt
00:00:02]} 15. Qc2 {[%clk 00:12:46]} {[%emt 00:00:05]} Rb8 {[%clk 00:13:54]}
{[%emt 00:00:18]} 16. Nd4 {[%clk 00:12:36]} {[%emt 00:00:14]} Qc7 {[%clk
00:13:16]} {[%emt 00:00:43]} 17. Rh3 {[%clk 00:12:17]} {[%emt 00:00:23]} h6
{[%clk 00:13:19]} {[%emt 00:00:03]} 18. f4 {[%clk 00:12:04]} {[%emt 00:00:18]}
c5 {[%clk 00:13:18]} {[%emt 00:00:06]} 19. N4f3 {[%clk 00:10:59]} {[%emt
00:01:10]} Nd3 {[%clk 00:11:25]} {[%emt 00:01:58]} 20. Rh4 {[%clk 00:10:07]}
{[%emt 00:00:56]} Rb2 {[%clk 00:11:10]} {[%emt 00:00:20]} 21. Qd1 {[%clk
00:10:09]} {[%emt 00:00:05]} Qa5 {[%clk 00:10:18]} {[%emt 00:00:57]} 22. c4
{[%clk 00:07:15]} {[%emt 00:02:58]} dxc4 {[%clk 00:09:28]} {[%emt 00:00:55]} 23.
Ne4 {[%clk 00:07:06]} {[%emt 00:00:14]} c3 {[%clk 00:09:19]} {[%emt 00:00:15]}
24. Ne1 {[%clk 00:04:30]} {[%emt 00:02:40]} c2 {[%clk 00:07:56]} {[%emt
00:01:28]} 25. Nf6+ {[%clk 00:02:36]} {[%emt 00:01:59]} Kh8 {[%clk 00:04:06]}
{[%emt 00:03:54]} 26. Rxh6+ {[%clk 00:02:22]} {[%emt 00:00:19]} gxh6 {[%clk
00:04:09]} {[%emt 00:00:02]} 27. Qh5 {[%clk 00:02:25]} {[%emt 00:00:02]} Kg7
{[%clk 00:04:07]} {[%emt 00:00:08]} 28. Qg4+ {[%clk 00:02:29]} {[%emt
00:00:01]} Kh8 {[%clk 00:04:02]} {[%emt 00:00:10]} 29. Qh5 {[%clk 00:01:24]}
{[%emt 00:01:10]} Kg7 {[%clk 00:03:44]} {[%emt 00:00:22]} 30. Qg4+ {[%clk
00:01:09]} {[%emt 00:00:20]} Kh8 {[%clk 00:03:47]} {[%emt 00:00:02]} 1/2-1/2

[Event "Open NK Rapid 2025 bord 26-50"]
[Site "Helmond, Netherlands"]
[Date "2025.05.03"]
[Round "9.11"]
[White "Garay, Enzo"]
[Black "Rudman, Lev"]
[Result "1-0"]
[TimeControl "15 min +5 sec increment"]
[WhiteFideId "40104125"]
[BlackFideId "34131396"]
[WhiteElo "1933"]
[BlackElo "1684"]

1. e4 {[%clk 00:15:08]} {[%emt 00:00:01]} Nc6 {[%clk 00:15:09]} 2. Nf3 {[%clk
00:15:10]} {[%emt 00:00:03]} e5 {[%clk 00:15:13]} {[%emt 00:00:01]} 3. Bb5
{[%clk 00:15:13]} {[%emt 00:00:02]} d6 {[%clk 00:15:15]} {[%emt 00:00:02]} 4.
c3 {[%clk 00:15:16]} {[%emt 00:00:03]} h6 {[%clk 00:15:18]} {[%emt 00:00:02]} 5.
d4 {[%clk 00:15:19]} {[%emt 00:00:02]} Bg4 {[%clk 00:14:17]} {[%emt 00:01:06]}
6. dxe5 {[%clk 00:15:13]} {[%emt 00:00:10]} dxe5 {[%clk 00:14:12]} {[%emt
00:00:10]} 7. Qxd8+ {[%clk 00:15:15]} Rxd8 {[%clk 00:14:12]} 8. Nbd2 {[%clk
00:15:14]} {[%emt 00:00:12]} Nge7 {[%clk 00:14:17]} {[%emt 00:00:03]} 9. Nxe5
{[%clk 00:15:07]} {[%emt 00:00:11]} a6 {[%clk 00:14:18]} {[%emt 00:00:05]} 10.
Bxc6+ {[%clk 00:15:09]} {[%emt 00:00:02]} Nxc6 {[%clk 00:14:18]} {[%emt
00:00:06]} 11. Nxg4 {[%clk 00:15:13]} {[%emt 00:00:01]} 1-0